bitfinex-derivatives/quotes_BTCF0:USTF0_20250308
["timestamp","ask_amount","ask_price","bid_price","bid_amount"]
[1741466308426,0.1397605,86280.0,86279.0,0.1135662]
[1741466309236,0.24381642,86280.0,86279.0,0.1135662]
[1741466311429,0.24381642,86280.0,86279.0,0.1455662]
[1741466316039,0.24081642,86280.0,86279.0,0.1455662]
[1741466316238,0.24281642,86280.0,86279.0,0.1455662]
[1741466316535,0.24381642,86280.0,86279.0,0.1455662]
[1741466317434,0.1397605,86280.0,86279.0,0.1455662]
[1741466318247,0.1407605,86280.0,86279.0,0.1455662]
[1741466319641,0.14592974,86280.0,86279.0,0.1455662]
[1741466320446,0.14592974,86280.0,86279.0,0.1135662]
[1741466321031,0.14592974,86280.0,86279.0,0.1444662]
[1741466323145,0.14292974,86280.0,86279.0,0.1444662]
[1741466323346,0.14192974,86280.0,86279.0,0.1444662]
[1741466324047,0.14092974,86280.0,86279.0,0.1444662]
[1741466324252,0.14292974,86280.0,86279.0,0.1444662]
[1741466324547,0.1377605,86280.0,86279.0,0.1444662]
[1741466325049,0.1387605,86280.0,86279.0,0.1444662]
[1741466325746,0.1367605,86280.0,86279.0,0.1444662]
[1741466325940,0.1387605,86280.0,86279.0,0.1444662]
[1741466326340,0.1367605,86280.0,86279.0,0.1444662]
[1741466326556,0.1387605,86280.0,86279.0,0.1444662]
[1741466329042,0.14392692,86280.0,86279.0,0.1444662]
[1741466330141,0.14392692,86280.0,86279.0,0.35281794]
[1741466331552,0.1387605,86280.0,86279.0,0.35281794]
[1741466332142,0.1387605,86280.0,86279.0,0.25235664]
[1741466332342,0.1387605,86280.0,86279.0,0.32191794]
[1741466333553,0.1397605,86280.0,86279.0,0.35221794]
[1741466333748,0.14495389,86280.0,86279.0,0.35221794]
[1741466334146,0.14495389,86280.0,86279.0,0.1438662]
[1741466334346,0.14295389,86280.0,86279.0,0.1438662]
[1741466334546,0.14595389,86280.0,86279.0,0.1438662]
[1741466335146,0.1377605,86280.0,86279.0,0.1438662]
[1741466335342,0.1397605,86280.0,86279.0,0.1438662]
[1741466335554,0.0702,86280.0,86279.0,0.1438662]
[1741466336456,0.0692,86280.0,86279.0,0.1438662]
[1741466336758,0.1387605,86280.0,86279.0,0.1438662]
[1741466337761,0.1367605,86280.0,86279.0,0.1438662]
[1741466338058,0.1387605,86280.0,86279.0,0.1438662]
[1741466338558,0.27766351,86280.0,86279.0,0.35221794]
[1741466339551,0.27666351,86280.0,86279.0,0.35221794]
[1741466339749,0.27666351,86280.0,86279.0,0.28265664]
[1741466339961,0.27666351,86280.0,86279.0,0.35221794]
[1741466340266,0.27766351,86280.0,86279.0,0.35221794]
[1741466340455,0.28283213,86280.0,86279.0,0.35221794]
[1741466341154,0.28083213,86280.0,86279.0,0.35221794]
[1741466341764,0.28283213,86280.0,86279.0,0.35221794]
[1741466342251,0.28283213,86280.0,86279.0,0.35301794]
[1741466342453,0.28083213,86280.0,86279.0,0.35301794]
[1741466342749,0.28283213,86280.0,86279.0,0.35301794]
[1741466343459,0.28083213,86280.0,86279.0,0.35301794]
[1741466343660,0.28283213,86280.0,86279.0,0.35301794]
[1741466346962,0.18067163,86280.0,86279.0,0.35301794]
[1741466347956,0.21397163,86280.0,86279.0,0.35301794]
[1741466350461,0.20880301,86280.0,86279.0,0.35301794]
[1741466350966,0.0699,86280.0,86279.0,0.35301794]
[1741466351670,0.0366,86280.0,86279.0,0.35301794]
[1741466351960,0.004,86280.0,86279.0,0.71381794]
[1741466352163,0.0001739,86283.0,86279.0,0.71381794]
[1741466352164,0.0001739,86283.0,86282.0,0.0695588]
[1741466352561,0.0001739,86283.0,86282.0,0.11674484]
[1741466353064,0.0001739,86283.0,86282.0,0.18114484]
[1741466353270,0.0001739,86283.0,86282.0,0.1339588]
[1741466353873,0.0021739,86283.0,86282.0,0.1339588]
[1741466354574,0.0041739,86283.0,86282.0,0.1339588]
[1741466357075,0.1041415,86294.0,86293.0,0.06955]
[1741466357666,0.1041415,86294.0,86293.0,0.13475]
[1741466358374,0.1061415,86294.0,86293.0,0.13475]
[1741466361176,0.002,86294.0,86293.0,0.13475]
[1741466361779,0.002,86294.0,86293.0,0.49555]
[1741466363292,0.002,86294.0,86293.0,0.49855]
[1741466364173,0.0317,86301.0,86300.0,0.0695443]
[1741466364367,0.0317,86301.0,86300.0,0.4303443]
[1741466364972,0.0317,86301.0,86300.0,0.4943443]
[1741466365371,0.0317,86301.0,86300.0,0.50568678]
[1741466370991,0.0317,86301.0,86300.0,0.14488678]
[1741466371283,0.0317,86301.0,86300.0,0.50568678]
[1741466371482,0.1012435,86301.0,86300.0,0.47398678]
[1741466371671,0.1314435,86301.0,86300.0,0.47398678]
[1741466371877,0.0619,86301.0,86300.0,0.47398678]
[1741466375175,0.1314435,86301.0,86300.0,0.47398678]
[1741466376087,0.0619,86301.0,86300.0,0.47398678]
[1741466377283,0.0936,86301.0,86300.0,0.47398678]
[1741466378884,0.0936,86301.0,86300.0,0.11318678]
[1741466379087,0.0936,86301.0,86300.0,0.47398678]
[1741466381089,0.1631435,86301.0,86300.0,0.47398678]
[1741466381987,0.1631435,86301.0,86300.0,0.11318678]
[1741466385392,0.1631435,86301.0,86300.0,0.04364248]
[1741466385698,0.1631435,86301.0,86300.0,0.11318678]
[1741466396401,0.30199884,86301.0,86300.0,0.11318678]
[1741466400903,0.27179884,86301.0,86300.0,0.11318678]
[1741466401102,0.27179884,86301.0,86300.0,0.14548678]
[1741466404712,0.1329435,86301.0,86300.0,0.14548678]
[1741466405111,0.1329435,86301.0,86300.0,0.17668678]
[1741466405408,0.1329435,86301.0,86300.0,0.1653443]
[1741466405614,0.1329435,86301.0,86300.0,0.1018443]
[1741466406111,0.1329435,86301.0,86300.0,0.1330443]
[1741466406713,0.1329435,86301.0,86300.0,0.14440114]
[1741466413818,0.1329435,86301.0,86300.0,0.1330443]
[1741466415919,0.1329435,86301.0,86300.0,0.14457115]
[1741466420117,0.1329435,86301.0,86300.0,0.35273153]
[1741466420514,0.1329435,86301.0,86300.0,0.34120468]
[1741466420821,0.1329435,86301.0,86300.0,0.20816038]
[1741466420822,0.4937435,86301.0,86300.0,0.20816038]
[1741466422820,0.50556197,86301.0,86300.0,0.20816038]
[1741466423824,0.4937435,86301.0,86300.0,0.20816038]
[1741466425321,0.4937435,86301.0,86295.0,0.1009482]
[1741466425322,0.0695476,86296.0,86295.0,0.1009482]
[1741466425922,0.0695476,86296.0,86295.0,0.0314]
[1741466426329,0.1332476,86296.0,86295.0,0.0314]
[1741466426518,0.1332476,86296.0,86295.0,0.0334]
[1741466427924,0.1015476,86296.0,86295.0,0.1029484]
[1741466428728,0.1015476,86296.0,86295.0,0.4940484]
[1741466428926,0.1015476,86296.0,86295.0,0.1332484]
[1741466430316,0.032,86296.0,86295.0,0.1332484]
[1741466430517,0.0347719,86301.0,86300.0,0.0695443]
[1741466430716,0.0655719,86301.0,86300.0,0.0695443]
[1741466431224,0.0347719,86301.0,86300.0,0.1324443]
[1741466431726,0.0661719,86301.0,86300.0,0.1324443]
[1741466439625,0.0967719,86301.0,86300.0,0.1324443]
[1741466441832,0.0661719,86301.0,86300.0,0.1324443]
[1741466442635,0.0314,86301.0,86300.0,0.1324443]
[1741466447640,0.0314,86301.0,86300.0,0.1334443]
[1741466448349,0.0314,86301.0,86300.0,0.1344443]
[1741466448641,0.13552218,86301.0,86300.0,0.1344443]
[1741466451144,0.13552218,86301.0,86300.0,0.1334443]
[1741466451337,0.13552218,86301.0,86300.0,0.1344443]
[1741466452744,0.10412218,86301.0,86300.0,0.1344443]
[1741466453342,0.13672218,86301.0,86300.0,0.1344443]
[1741466454541,0.10412218,86301.0,86300.0,0.1344443]
[1741466454941,0.13672218,86301.0,86300.0,0.1344443]
[1741466456748,0.13672218,86301.0,86300.0,0.4952443]
[1741466456948,0.0326,86301.0,86300.0,0.4952443]
[1741466458250,0.0001739,86302.0,86301.0,0.0695435]
[1741466458445,0.0001739,86302.0,86301.0,0.0999435]
[1741466458648,0.0001739,86302.0,86301.0,0.21159141]
[1741466460049,0.08561094,86305.0,86304.0,0.0695411]
[1741466460246,0.08561094,86305.0,86304.0,0.5069811]
[1741466460440,0.08561094,86305.0,86304.0,0.55412481]
[1741466460856,0.08561094,86305.0,86304.0,0.61582481]
[1741466461545,0.08561094,86305.0,86304.0,0.5686811]
[1741466461743,0.0318,86312.0,86311.0,0.0695355]
[1741466462046,0.0001739,86313.0,86312.0,0.0695347]
[1741466462247,0.0697078,86313.0,86312.0,0.0996347]
[1741466465948,0.0001739,86313.0,86312.0,0.0996347]
[1741466466149,0.0001739,86313.0,86312.0,0.1297347]
[1741466466653,0.0306739,86313.0,86312.0,0.1297347]
[1741466467250,0.1002078,86313.0,86312.0,0.1297347]
[1741466467858,0.1002078,86313.0,86312.0,0.10848318]
[1741466468250,0.1002078,86313.0,86312.0,0.14108318]
[1741466470561,0.1002078,86313.0,86312.0,0.10848318]
[1741466471951,0.0306739,86313.0,86312.0,0.10848318]
[1741466472160,0.0306739,86313.0,86312.0,0.17148318]
[1741466475469,0.0001739,86313.0,86312.0,0.17148318]
[1741466477471,0.0001739,86313.0,86312.0,0.13958318]
[1741466477670,0.0001739,86313.0,86312.0,0.10848318]
[1741466478076,0.0001739,86313.0,86312.0,0.31671758]
[1741466478774,0.0697078,86313.0,86312.0,0.31671758]
[1741466479176,0.1021078,86313.0,86312.0,0.31671758]
[1741466480071,0.1021078,86313.0,86312.0,0.28661758]
[1741466481077,0.1021078,86313.0,86312.0,0.31741758]
[1741466481878,0.1021078,86313.0,86312.0,0.46998318]
[1741466482178,0.1021078,86313.0,86312.0,0.43918318]
[1741466482379,0.1021078,86313.0,86312.0,0.46998318]
[1741466482982,0.1021078,86313.0,86312.0,0.43918318]
[1741466483278,0.1021078,86313.0,86312.0,0.36964848]
[1741466483679,0.1021078,86313.0,86312.0,0.00884848]
[1741466483884,0.0695363,86310.0,86309.0,0.2082344]
[1741466484276,0.08121878,86310.0,86309.0,0.21705267]
[1741466484784,0.11151878,86310.0,86309.0,0.21705267]
[1741466485976,0.11151878,86310.0,86300.0,0.41660124]
[1741466485977,0.0695411,86304.0,86300.0,0.2777783]
[1741466486677,0.0695411,86304.0,86300.0,0.2082344]
[1741466486981,0.1309411,86304.0,86300.0,0.2082344]
[1741466487780,0.1309411,86304.0,86303.0,0.00881036]
[1741466490277,0.1309411,86304.0,86292.0,0.2082344]
[1741466490278,0.06955,86293.0,86292.0,0.2082344]
[1741466491295,0.06955,86293.0,86292.0,0.2777852]
[1741466491580,0.06955,86293.0,86292.0,0.2817852]
[1741466491884,0.06955,86293.0,86292.0,0.2847852]
[1741466492076,0.06955,86293.0,86292.0,0.2152344]
[1741466492482,0.06955,86293.0,86292.0,0.2122344]
[1741466493077,0.06955,86293.0,86292.0,0.2082344]
[1741466493275,0.06955,86293.0,86292.0,0.216903]
[1741466493578,0.06955,86293.0,86292.0,0.0086686]
[1741466493779,0.0695508,86292.0,86291.0,0.0308]
[1741466495391,0.1027508,86292.0,86291.0,0.0308]
[1741466495689,0.1027508,86292.0,86291.0,0.1003516]
[1741466496284,0.1027508,86292.0,86291.0,0.0308]
[1741466496688,0.1388414,86296.0,86295.0,0.0695484]
[1741466496879,0.11142084,86296.0,86295.0,0.0695484]
[1741466497084,0.11142084,86296.0,86293.0,0.0347746]
[1741466497085,0.11142084,86300.0,86294.0,0.0607]
[1741466497286,0.14619304,86300.0,86297.0,0.395573]
[1741466497485,0.1012451,86299.0,86298.0,0.0607]
[1741466497687,0.1326451,86299.0,86298.0,0.1302451]
[1741466498190,0.1326451,86299.0,86298.0,0.0607]
[1741466498488,0.1326451,86299.0,86298.0,0.1302459]
[1741466498888,0.1326451,86299.0,86298.0,0.1312459]
[1741466499390,0.1326451,86299.0,86298.0,0.1302459]
[1741466499794,0.1326451,86299.0,86298.0,0.0304]
[1741466499991,0.1326451,86299.0,86297.0,0.002]
[1741466499992,0.0695459,86298.0,86297.0,0.002]
[1741466500187,0.06955,86293.0,86292.0,0.0307]
[1741466501183,0.12995,86293.0,86292.0,0.0307]
[1741466501389,0.12995,86293.0,86292.0,0.1323508]
[1741466501694,0.13514679,86293.0,86292.0,0.1323508]
[1741466502290,0.13514679,86293.0,86292.0,0.0307]
[1741466502489,0.13514679,86293.0,86292.0,0.1002508]
[1741466503593,0.13514679,86293.0,86292.0,0.0307]
[1741466503894,0.13514679,86293.0,86292.0,0.1002508]
[1741466504089,0.13514679,86293.0,86292.0,0.1329508]
[1741466511099,0.13514679,86293.0,86292.0,0.0634]
[1741466511299,0.13514679,86293.0,86292.0,0.0307]
[1741466512301,0.13514679,86293.0,86292.0,0.1316508]
[1741466514600,0.06559679,86293.0,86284.0,0.0001738]
[1741466514789,0.4303564,86285.0,86284.0,0.0001738]
[1741466515591,0.49915319,86285.0,86284.0,0.0001738]
[1741466515791,0.49915319,86285.0,86267.0,0.78056]
[1741466515792,0.0695613,86279.0,86278.0,0.21712638]
[1741466516299,0.07475809,86279.0,86278.0,0.21712638]
[1741466516700,0.13835809,86279.0,86278.0,0.21712638]
[1741466516999,0.15006814,86279.0,86278.0,0.21712638]
[1741466517394,0.15006814,86279.0,86278.0,0.21812638]
[1741466517600,0.15006814,86279.0,86278.0,0.00989198]
[1741466518297,0.51086814,86279.0,86278.0,0.00989198]
[1741466518801,0.51086814,86279.0,86278.0,0.01089198]
[1741466519195,0.51086814,86279.0,86278.0,0.00989198]
[1741466519393,0.51086814,86279.0,86278.0,0.00889198]
[1741466519592,0.0695669,86272.0,86271.0,0.0312]
[1741466519799,0.1461269,86272.0,86271.0,0.0312]
[1741466520296,0.15132369,86272.0,86271.0,0.0312]
[1741466520496,0.21322369,86272.0,86271.0,0.0312]
[1741466521097,0.21322369,86272.0,86271.0,0.1007677]
[1741466521998,0.21322369,86272.0,86271.0,0.1027677]
[1741466522796,0.21322369,86272.0,86271.0,0.1047677]
[1741466523890,0.21322369,86272.0,86271.0,0.11334611]
[1741466524792,0.21322369,86272.0,86271.0,0.14664611]
[1741466526394,0.21322369,86272.0,86271.0,0.14764611]
[1741466527005,0.18262369,86272.0,86271.0,0.15920987]
[1741466527810,0.10606369,86272.0,86271.0,0.15920987]
[1741466528303,0.10606369,86272.0,86271.0,0.15820987]
[1741466528603,0.10606369,86272.0,86271.0,0.14664611]
[1741466528908,0.10606369,86272.0,86271.0,0.07707841]
[1741466529107,0.10606369,86272.0,86271.0,0.14664611]
[1741466529408,0.10606369,86272.0,86271.0,0.15853644]
[1741466531207,0.1008669,86272.0,86271.0,0.15853644]
[1741466531907,0.13941563,86300.0,86282.0,0.0347791]
[1741466532109,0.13941563,86300.0,86284.0,0.0695572]
[1741466532110,0.2886564,86285.0,86284.0,0.0695572]
[1741466532710,0.2886564,86285.0,86284.0,0.1316572]
[1741466534620,0.0695564,86285.0,86284.0,0.1316572]
[1741466535812,0.00173929,86290.0,86284.0,0.0621]
[1741466536012,0.00173929,86290.0,86289.0,0.0695532]
[1741466536514,0.07129169,86290.0,86289.0,0.0695532]
[1741466536711,0.07129169,86290.0,86289.0,0.1338532]
[1741466537105,0.00173929,86290.0,86289.0,0.1338532]
[1741466537306,0.07129169,86290.0,86289.0,0.1338532]
[1741466538718,0.07129169,86290.0,86289.0,0.14540536]
[1741466539016,0.07129169,86290.0,86289.0,0.50620536]
[1741466539312,0.07129169,86290.0,86289.0,0.4946532]
[1741466539519,0.07129169,86290.0,86289.0,0.4251]
[1741466539903,0.07129169,86290.0,86289.0,0.4946532]
[1741466541316,0.07129169,86290.0,86289.0,0.3933]
[1741466541504,0.07129169,86290.0,86289.0,0.1020532]
[1741466543220,0.06995736,86290.0,86289.0,0.1020532]
[1741466547726,0.00040496,86290.0,86289.0,0.1020532]
[1741466549527,0.10025736,86290.0,86289.0,0.1020532]
[1741466551525,0.03070496,86290.0,86289.0,0.1020532]
[1741466551925,0.00040496,86290.0,86289.0,0.1020532]
[1741466554428,0.0001738,86293.0,86292.0,0.0695508]
[1741466554643,0.0001738,86293.0,86292.0,0.4303508]
[1741466555327,0.0001738,86293.0,86292.0,0.4607508]
[1741466555529,0.0001738,86293.0,86292.0,0.5230508]
[1741466559025,0.0001738,86293.0,86292.0,0.1622508]
[1741466559232,0.0001738,86293.0,86292.0,0.5230508]
[1741466560232,0.0001738,86293.0,86292.0,0.1622508]
[1741466560442,0.0001738,86293.0,86292.0,0.5230508]
[1741466563826,0.0301738,86293.0,86292.0,0.5230508]
[1741466565929,0.0001738,86293.0,86292.0,0.5230508]
[1741466567336,0.0307738,86293.0,86292.0,0.5230508]
[1741466567939,0.0001738,86293.0,86292.0,0.5230508]
[1741466570037,0.0334738,86293.0,86292.0,0.5230508]
[1741466574035,0.0334738,86293.0,86292.0,0.1622508]
[1741466574238,0.0334738,86293.0,86292.0,0.5230508]
[1741466577742,0.0334738,86293.0,86292.0,0.1622508]
[1741466577944,0.0334738,86293.0,86292.0,0.5230508]
[1741466579447,0.0334738,86293.0,86292.0,0.1622508]
[1741466579752,0.0334738,86293.0,86292.0,0.5230508]
[1741466580652,0.0334738,86293.0,86292.0,0.4605508]
[1741466580844,0.1357238,86293.0,86292.0,0.4303508]
[1741466581143,0.1357238,86293.0,86292.0,0.4633508]
[1741466581945,0.0661738,86293.0,86292.0,0.4633508]
[1741466582146,0.0661738,86293.0,86292.0,0.4942508]
[1741466582546,0.0334738,86293.0,86292.0,0.4942508]
[1741466585856,0.0334738,86293.0,86292.0,0.4633508]
[1741466589756,0.1030238,86293.0,86292.0,0.3938]
[1741466590658,0.1030238,86293.0,86292.0,0.4633508]
[1741466591161,0.1030238,86293.0,86292.0,0.4303508]
[1741466591353,0.1030238,86293.0,86292.0,0.3608]
[1741466591659,0.1030238,86293.0,86292.0,0.4303508]
[1741466592070,0.1030238,86293.0,86292.0,0.3608]
[1741466594656,0.11756613,86293.0,86292.0,0.3608]
[1741466596060,0.0695524,86290.0,86289.0,0.20849711]
[1741466596757,0.17959473,86290.0,86289.0,0.20849711]
[1741466597755,0.54039473,86290.0,86289.0,0.20849711]
[1741466597951,0.5314456,86290.0,86289.0,0.20849711]
[1741466598159,0.1043353,86286.0,86285.0,0.0695564]
[1741466598555,0.1695353,86286.0,86285.0,0.0695564]
[1741466599155,0.1751285,86286.0,86285.0,0.0695564]
[1741466599855,0.18388637,86286.0,86285.0,0.0695564]
[1741466600256,0.1695353,86286.0,86285.0,0.0695564]
[1741466600755,0.1043389,86283.0,86282.0,0.0695584]
[1741466601357,0.1097629,86283.0,86282.0,0.0695584]
[1741466601759,0.1107629,86283.0,86282.0,0.0695584]
[1741466602158,0.1117629,86283.0,86282.0,0.0695584]
[1741466604062,0.1097629,86283.0,86282.0,0.0998584]
[1741466604261,0.007424,86283.0,86282.0,0.0998584]
[1741466604657,0.075982,86283.0,86282.0,0.0998584]
[1741466604858,0.074982,86283.0,86282.0,0.0998584]
[1741466605555,0.17901091,86283.0,86282.0,0.0998584]
[1741466606264,0.10945291,86283.0,86282.0,0.0998584]
[1741466606970,0.10402891,86283.0,86282.0,0.0998584]
[1741466607467,0.13870521,86289.0,86288.0,0.069554]
[1741466607662,0.20862201,86304.0,86289.0,0.0347765]
[1741466607867,0.20862201,86304.0,86303.0,0.0695419]
[1741466608065,0.21401377,86304.0,86303.0,0.4303419]
[1741466609760,0.20862201,86304.0,86303.0,0.4303419]
[1741466610063,0.0301,86305.0,86304.0,0.0695411]
[1741466610269,0.0301,86305.0,86304.0,0.1025411]
[1741466611270,0.0311,86305.0,86304.0,0.4633411]
[1741466612863,0.0311,86305.0,86304.0,0.47500066]
[1741466617274,0.0311,86305.0,86304.0,0.50830066]
[1741466618071,0.0311,86305.0,86304.0,0.43875956]
[1741466618072,0.1006403,86305.0,86304.0,0.43875956]
[1741466618268,0.1006403,86305.0,86304.0,0.50830066]
[1741466618468,0.1006403,86305.0,86304.0,0.43875956]
[1741466618664,0.1006403,86305.0,86304.0,0.40545956]
[1741466619062,0.1006403,86305.0,86304.0,0.47500066]
[1741466619258,0.1006403,86305.0,86304.0,0.40545956]
[1741466619768,0.1006403,86305.0,86304.0,0.47500066]
[1741466621077,0.1006403,86305.0,86304.0,0.40545956]
[1741466621478,0.1006403,86305.0,86304.0,0.47500066]
[1741466622479,0.0311,86305.0,86304.0,0.47500066]
[1741466622664,0.0366032,86305.0,86304.0,0.47500066]
[1741466622868,0.0065032,86305.0,86304.0,0.47500066]
[1741466624274,0.0760435,86305.0,86304.0,0.47500066]
[1741466624681,0.0065032,86305.0,86304.0,0.47500066]
[1741466625274,0.0387032,86305.0,86304.0,0.47500066]
[1741466625886,0.0387032,86305.0,86304.0,0.11420066]
[1741466626382,0.1082435,86305.0,86304.0,0.47500066]
[1741466628576,0.1082435,86305.0,86304.0,0.11420066]
[1741466628777,0.1082435,86305.0,86304.0,0.47500066]
[1741466629175,0.1082435,86305.0,86304.0,0.11420066]
[1741466629376,0.0387032,86305.0,86304.0,0.47500066]
[1741466631983,0.3608,86320.0,86311.0,0.0695355]
[1741466632185,0.0998306,86317.0,86311.0,0.4303355]
[1741466632577,0.0695331,86314.0,86311.0,0.4303355]
[1741466632778,0.0329,86313.0,86311.0,0.4628355]
[1741466633474,0.0318738,86312.0,86311.0,0.4955355]
[1741466635376,0.0308738,86312.0,86311.0,0.4945355]
[1741466635581,0.0308738,86312.0,86311.0,0.4975355]
[1741466635978,0.0620738,86312.0,86311.0,0.4945355]
[1741466636181,0.1316085,86312.0,86311.0,0.4975355]
[1741466636385,0.1316085,86312.0,86311.0,0.4658355]
[1741466636588,0.1316085,86312.0,86311.0,0.4698355]
[1741466637391,0.14066541,86312.0,86311.0,0.4698355]
[1741466637590,0.14066541,86312.0,86311.0,0.4678355]
[1741466638785,0.07113071,86312.0,86311.0,0.4678355]
[1741466638984,0.07113071,86312.0,86311.0,0.4991355]
[1741466639186,0.14066541,86312.0,86311.0,0.4991355]
[1741466639788,0.14066541,86312.0,86311.0,0.4971355]
[1741466639989,0.14066541,86312.0,86311.0,0.4951355]
[1741466640189,0.14066541,86312.0,86311.0,0.4961355]
[1741466640390,0.14066541,86312.0,86311.0,0.4951355]
[1741466640794,0.1316085,86312.0,86311.0,0.4941355]
[1741466641489,0.1316085,86312.0,86311.0,0.3933]
[1741466641688,0.0695387,86307.0,86306.0,0.20849711]
[1741466641886,0.0695387,86307.0,86306.0,0.30873661]
[1741466642084,0.1328379,86308.0,86307.0,0.0695387]
[1741466642284,0.1328379,86308.0,86307.0,0.1002387]
[1741466642692,0.1328379,86308.0,86307.0,0.1313387]
[1741466643294,0.1328379,86308.0,86307.0,0.0618]
[1741466643990,0.13829593,86308.0,86307.0,0.0618]
[1741466644196,0.13829593,86308.0,86307.0,0.1333387]
[1741466644896,0.13829593,86308.0,86307.0,0.1313387]
[1741466645199,0.13829593,86308.0,86307.0,0.1323387]
[1741466645392,0.1328379,86308.0,86307.0,0.1323387]
[1741466645599,0.13827748,86308.0,86307.0,0.1323387]
[1741466647004,0.13827748,86308.0,86307.0,0.1313387]
[1741466648202,0.13827748,86308.0,86307.0,0.1323387]
[1741466648607,0.13827748,86308.0,86307.0,0.1333387]
[1741466649106,0.13827748,86308.0,86307.0,0.4941387]
[1741466649405,0.13827748,86308.0,86307.0,0.4951387]
[1741466649795,0.13827748,86308.0,86307.0,0.4941387]
[1741466650599,0.13827748,86308.0,86307.0,0.4961387]
[1741466650799,0.06873958,86308.0,86307.0,0.4941387]
[1741466650999,0.06873958,86308.0,86307.0,0.4961387]
[1741466651604,0.13827748,86308.0,86307.0,0.4961387]
[1741466652402,0.13827748,86308.0,86307.0,0.1343387]
[1741466652608,0.13827748,86308.0,86307.0,0.4951387]
[1741466653206,0.13827748,86308.0,86307.0,0.4931387]
[1741466653408,0.13827748,86308.0,86307.0,0.4951387]
[1741466654904,0.13827748,86308.0,86307.0,0.4931387]
[1741466655105,0.13827748,86308.0,86307.0,0.4951387]
[1741466655514,0.14705861,86308.0,86307.0,0.4951387]
[1741466655702,0.07752071,86308.0,86307.0,0.4951387]
[1741466657597,0.07752071,86308.0,86307.0,0.4931387]
[1741466657804,0.07752071,86308.0,86307.0,0.4951387]
[1741466659215,0.14705861,86308.0,86307.0,0.4951387]
[1741466660608,0.14705861,86308.0,86307.0,0.4941387]
[1741466660915,0.14705861,86308.0,86307.0,0.4951387]
[1741466663312,0.07752071,86308.0,86307.0,0.4951387]
[1741466663707,0.06873958,86308.0,86307.0,0.4951387]
[1741466668113,0.0633,86308.0,86307.0,0.4951387]
[1741466669414,0.0633,86308.0,86307.0,0.1343387]
[1741466669919,0.0633,86308.0,86307.0,0.4951387]
[1741466671715,0.1328379,86308.0,86307.0,0.4951387]
[1741466672421,0.1328379,86308.0,86307.0,0.1343387]
[1741466672620,0.1328379,86308.0,86307.0,0.4951387]
[1741466673718,0.0633,86308.0,86307.0,0.4951387]
[1741466674321,0.0633,86308.0,86307.0,0.1343387]
[1741466674620,0.0633,86308.0,86307.0,0.4951387]
[1741466675417,0.0633,86308.0,86307.0,0.1343387]
[1741466675617,0.0633,86308.0,86307.0,0.4951387]
[1741466676314,0.0633,86308.0,86307.0,0.1343387]
[1741466676621,0.0633,86308.0,86307.0,0.4951387]
[1741466680416,0.0319,86308.0,86307.0,0.4951387]
[1741466680621,0.13904119,86311.0,86310.0,0.0695363]
[1741466681823,0.16994119,86311.0,86310.0,0.0695363]
[1741466682128,0.27027669,86311.0,86310.0,0.1010363]
[1741466683921,0.20074119,86311.0,86310.0,0.1010363]
[1741466684120,0.0617,86311.0,86310.0,0.30932322]
[1741466684320,0.06687313,86311.0,86310.0,0.30932322]
[1741466684725,0.06687313,86311.0,86310.0,0.67012322]
[1741466684926,0.13640863,86311.0,86310.0,0.67012322]
[1741466685425,0.1312355,86311.0,86310.0,0.67012322]
[1741466687028,0.13641104,86311.0,86310.0,0.67012322]
[1741466687633,0.13641104,86311.0,86310.0,0.67312322]
[1741466688434,0.13641104,86311.0,86310.0,0.4648363]
[1741466688633,0.13641104,86311.0,86310.0,0.4698363]
[1741466688822,0.13641104,86311.0,86310.0,0.5007363]
[1741466689325,0.1312355,86311.0,86310.0,0.4997363]
[1741466690022,0.1312355,86311.0,86310.0,0.4977363]
[1741466690222,0.0617,86311.0,86310.0,0.4977363]
[1741466691724,0.0617,86311.0,86310.0,0.4967363]
[1741466692825,0.0617,86311.0,86310.0,0.1359363]
[1741466693022,0.0617,86311.0,86310.0,0.4967363]
[1741466693220,0.0617,86311.0,86310.0,0.4947363]
[1741466693426,0.0617,86311.0,86310.0,0.70502322]
[1741466693825,0.0617,86311.0,86310.0,0.70302322]
[1741466694026,0.0617,86311.0,86310.0,0.70602322]
[1741466695126,0.0617,86311.0,86310.0,0.70802322]
[1741466695527,0.0617,86311.0,86310.0,0.70702322]
[1741466695927,0.0617,86311.0,86310.0,0.70602322]
[1741466696128,0.0617,86311.0,86310.0,0.70702322]
[1741466696327,0.0617,86311.0,86310.0,0.34622322]
[1741466696538,0.0617,86311.0,86310.0,0.70402322]
[1741466696725,0.0617,86311.0,86310.0,0.70702322]
[1741466698331,0.0617,86311.0,86310.0,0.4987363]
[1741466699027,0.0617,86311.0,86310.0,0.4957363]
[1741466699232,0.0617,86311.0,86310.0,0.4987363]
[1741466700735,0.0617,86311.0,86310.0,0.4957363]
[1741466700948,0.0617,86311.0,86310.0,0.4987363]
[1741466705626,0.0617,86311.0,86310.0,0.4957363]
[1741466705831,0.0617,86311.0,86310.0,0.4987363]
[1741466706030,0.1312355,86311.0,86310.0,0.4987363]
[1741466706234,0.1312355,86311.0,86310.0,0.4957363]
[1741466706439,0.1312355,86311.0,86310.0,0.4987363]
[1741466706927,0.1312355,86311.0,86310.0,0.4977363]
[1741466708238,0.1312355,86311.0,86310.0,0.4967363]
[1741466708434,0.13640651,86311.0,86310.0,0.4967363]
[1741466709533,0.13640651,86311.0,86310.0,0.3648]
[1741466709830,0.13640651,86311.0,86310.0,0.004]
[1741466710033,0.49720651,86311.0,86310.0,0.004]
[1741466710234,0.50881525,86311.0,86310.0,0.004]
[1741466710538,0.50881525,86311.0,86310.0,0.002]
[1741466710835,0.14801525,86311.0,86310.0,0.001]
[1741466711135,0.13640651,86311.0,86310.0,0.002]
[1741466711838,0.1312355,86311.0,86310.0,0.0715363]
[1741466712832,0.13640484,86311.0,86310.0,0.0715363]
[1741466714743,0.1312355,86311.0,86310.0,0.0715363]
[1741466715335,0.14283013,86311.0,86310.0,0.0715363]
[1741466715736,0.14283013,86311.0,86310.0,0.002]
[1741466716141,0.1312355,86311.0,86310.0,0.002]
[1741466720942,0.1312355,86311.0,86310.0,0.0715363]
[1741466721342,0.1312355,86311.0,86310.0,0.002]
[1741466722751,0.1312355,86311.0,86310.0,0.0322]
[1741466727745,0.1312355,86311.0,86310.0,0.002]
[1741466728153,0.2117,86311.0,86296.0,0.77888]
[1741466728358,0.0695476,86296.0,86294.0,0.20819286]
[1741466729150,0.1264476,86296.0,86294.0,0.20819286]
[1741466729360,0.13176399,86296.0,86294.0,0.20819286]
[1741466729662,0.12676399,86296.0,86294.0,0.20819286]
[1741466729863,0.12676399,86296.0,86295.0,0.0326738]
[1741466730162,0.12676399,86296.0,86295.0,0.0396738]
[1741466730364,0.13813567,86296.0,86295.0,0.0396738]
[1741466731160,0.13813567,86296.0,86295.0,0.0366738]
[1741466731462,0.13813567,86296.0,86295.0,0.0396738]
[1741466732064,0.13813567,86296.0,86295.0,0.0386738]
[1741466732753,0.14013567,86296.0,86295.0,0.0356738]